fUSD/lending_fUSD_20260401
["ID","MTS","AMOUNT","RATE_DAILY","PERIOD"]
[419175160,1775004643270,-150.54,0.00014064,2]
[419175161,1775004643280,-200.0,0.00014077,2]
[419175163,1775004643290,-3292.0,0.00014103,2]
[419175164,1775004643299,-166.66,0.0001411,2]
[419175166,1775004643309,-2000.0,0.0001418,2]
[419175168,1775004643319,-200.0,0.00014218,2]
[419175169,1775004643329,-166.66,0.00014247,2]
[419175170,1775004643339,-1000.0,0.00014247,2]
[419175171,1775004643350,-500.0,0.00014247,2]
[419175172,1775004643361,-227.36412512,0.00014247,2]
[419175174,1775004643370,-500.0,0.00014247,2]
[419175176,1775004643379,-289.39131265,0.00014247,2]
[419175178,1775004643389,-500.0,0.00014247,2]
[419175180,1775004643399,-1000.0,0.00014247,2]
[419175182,1775004643409,-1000.0,0.00014247,2]
[419175184,1775004643418,-500.0,0.00014247,2]
[419175186,1775004643428,-1000.0,0.00014247,2]
[419175187,1775004643437,-200.0,0.0001436,2]
[419175188,1775004643447,-166.66,0.00014384,2]
[419175189,1775004643457,-16177.31608361,0.0001442,2]
[419175190,1775004643467,-2665.23016469,0.0001442,2]
[419175191,1775004643476,-490.63411782,0.0001442,2]
[419175192,1775004643486,-502.0,0.00014423,3]
[419175193,1775004643495,-500.0,0.000145,5]
[419175194,1775004643505,-500.0,0.000145,5]
[419175195,1775004643514,-666.0,0.00014518,2]
[419175196,1775004643524,-670.83184762,0.00014518,2]
[419175197,1775004643534,-151.0,0.00014519,2]
[419175198,1775004643543,-420865.3685143,0.00014519,2]
[419175199,1775004643553,-684.0040152,0.0001452,2]
[419175200,1775004643564,-500.0,0.00014521,2]
[419175201,1775004643575,-148838.1321226,0.00014521,2]
[419175202,1775004643585,-1393.74,0.000146,2]
[419175203,1775004643595,-500.0,0.0001463,2]
[419175204,1775004643605,-322.3003,0.000147,17]
[419175205,1775004643615,-781.0056123,0.00014795,2]
[419175206,1775004643624,-1500.0,0.00014795,2]
[419175207,1775004643633,-200.0,0.000149,5]
[419175208,1775004643643,-738.961864,0.00014962,7]
[419175209,1775004643653,-155.0,0.00014973,2]
[419175210,1775004643662,-160.0,0.00014993,2]
[419175211,1775004643672,-160.0,0.00014993,2]
[419175212,1775004643682,-300.0,0.00015,2]
[419175213,1775004643691,-197.53,0.00015068,2]
[419175214,1775004643701,-284.99,0.00015112,2]
[419175215,1775004643711,-10000.0,0.00015205,2]
[419175216,1775004643721,-151.0,0.0001531,2]
[419175217,1775004643731,-77037.16,0.0001531,2]
[419175218,1775004643740,-1190.37,0.0001531,2]
[419175219,1775004643750,-159.52,0.0001531,2]
[419175220,1775004643760,-999.99,0.0001531,2]
[419175221,1775004643769,-499.99,0.0001531,2]
[419175222,1775004643778,-4999.99,0.0001531,2]
[419175223,1775004643788,-150.99,0.0001531,2]
[419175224,1775004643797,-4051.62,0.0001531,2]
[419175225,1775004644174,-9999.99,0.0001531,2]
[419175226,1775004644184,-1210.12,0.0001531,2]
[419175227,1775004644194,-517.89,0.0001531,2]
[419175228,1775004644203,-9999.99,0.0001531,2]
[419175229,1775004644213,-150.54,0.00015342,2]
[419175230,1775004644221,-157.728138,0.00015361,2]
[419175231,1775004644231,-157.728138,0.00015361,2]
[419175232,1775004644240,-157.728138,0.00015361,2]
[419175233,1775004644249,-157.728138,0.00015361,2]
[419175234,1775004644259,-24593.57451048,0.00015361,2]
[419175235,1775004644268,-151.0,0.00015462,2]
[419175236,1775004644278,-2000.0,0.0001547,2]
[419175237,1775004644288,-500.0,0.000155,7]
[419175238,1775004644298,-500.0,0.000155,7]
[419175239,1775004644308,-500.0,0.000155,7]
[419175240,1775004644318,-3175.7,0.00015507,2]
[419175241,1775004644327,-4609.0,0.00015514,2]
[419175242,1775004644337,-500.0,0.000156,7]
[419175243,1775004644348,-500.0,0.000156,7]
[419175244,1775004644358,-500.0,0.000157,7]
[419175245,1775004644367,-502.0,0.00015734,4]
[419175246,1775004644377,-212.0,0.00015753,2]
[419175247,1775004644387,-613.0,0.00015781,2]
[419175248,1775004644397,-2000.0,0.0001589,2]
[419175249,1775004644406,-3175.7,0.00015895,2]
[419175250,1775004644416,-150.0,0.000159,2]
[419175251,1775004644426,-455.16158369,0.00015901,2]
[419175252,1775004644436,-1000.0,0.0001597,2]
[419175253,1775004644446,-1000.0,0.0001597,2]
[419175254,1775004644455,-1187.15799433,0.0001597,2]
[419175255,1775004644465,-664.3986377,0.00016,2]
[419175256,1775004644475,-415.8952,0.00016,22]
[419175257,1775004644484,-150.0,0.00016001,2]
[419175258,1775004644494,-150.0,0.00016001,2]
[419175259,1775004644504,-2000.0,0.00016001,2]
[419175260,1775004644513,-1393.74,0.0001606,2]
[419175261,1775004644523,-288.86417,0.00016101,2]
[419175262,1775004644532,-200.0,0.00016101,2]
[419175263,1775004644541,-2805.0,0.0001618,2]
[419175264,1775004644551,-218.104388,0.00016263,7]
[419175265,1775004644561,-3175.7,0.00016282,2]
[419175266,1775004644570,-212.611365,0.00016365,7]
[419175267,1775004644580,-172.885316,0.00016365,7]
[419175268,1775004644590,-516.031249,0.00016365,7]
[419175269,1775004644600,-150.0,0.000164,2]
[419175270,1775004644610,-213.0,0.000164,2]
[419175271,1775004644619,-199.94943349,0.000164,2]
[419175272,1775004644630,-1064.31,0.00016438,2]
[419175273,1775004644639,-599.94,0.00016438,2]
[419175274,1775004644648,-801.0,0.00016438,2]
[419175275,1775004644659,-151.0,0.00016438,2]
[419175276,1775004644668,-2500.0,0.00016438,2]
[419175277,1775004644677,-2500.0,0.00016438,2]
[419175278,1775004644687,-2500.0,0.00016438,2]
[419175279,1775004644696,-2500.0,0.00016438,2]
[419175280,1775004644705,-2500.0,0.00016438,2]
[419175281,1775004644715,-2500.0,0.00016438,2]
[419175282,1775004644724,-1394.0,0.00016438,2]
[419175283,1775004644733,-152.0,0.00016438,2]
[419175284,1775004644742,-197.53,0.00016438,2]
[419175285,1775004644751,-202.12,0.00016438,2]
[419175286,1775004644761,-189.38,0.0001657,2]
[419175287,1775004644771,-3175.7,0.0001667,2]
[419175288,1775004644780,-1000.0,0.0001667,2]
[419175289,1775004644789,-157.12,0.00016712,2]
[419175290,1775004644800,-1064.96795081,0.00016822,2]
[419175291,1775004644809,-738.961864,0.00016914,7]
[419175292,1775004644818,-1032.38,0.00016931,2]
[419175293,1775004644827,-24593.57451048,0.00016951,2]
[419175294,1775004644836,-400.0,0.0001697,2]
[419175295,1775004644845,-500.0,0.0001697,2]
[419175296,1775004644856,-400.0,0.0001697,2]
[419175297,1775004644866,-350.0,0.00017,2]
[419175298,1775004644876,-502.0,0.00017046,5]
[419175299,1775004644886,-3175.7,0.00017058,2]
[419175300,1775004644895,-6453.0,0.00017065,2]
[419175301,1775004644904,-212.0,0.00017123,2]
[419175302,1775004644914,-1045.0,0.00017149,2]
[419175303,1775004644925,-621.0,0.00017149,2]
[419175304,1775004644935,-3519.0,0.00017149,2]
[419175305,1775004644945,-1262.0,0.00017149,2]
[419175306,1775004644954,-150.0,0.00017149,2]
[419175307,1775004644964,-150.0,0.00017149,2]
[419175308,1775004644973,-415.0,0.00017149,2]
[419175309,1775004644983,-150.0,0.00017149,2]
[419175310,1775004644992,-3767.0,0.00017149,2]
[419175311,1775004645001,-6015.0,0.00017149,2]
[419175312,1775004645010,-881.0,0.00017172,2]
[419175313,1775004645019,-536.6697,0.000173,27]
[419175314,1775004645028,-397.0,0.0001739,2]
[419175315,1775004645038,-284.99,0.0001739,2]
[419175316,1775004645047,-1000.46,0.00017424,2]
[419175317,1775004645056,-397.0,0.00017446,2]
[419175318,1775004645067,-21694.0,0.000175,2]
[419175319,1775004645076,-1393.74,0.00017519,2]
[419175320,1775004645086,-154.67710673,0.00017532,2]
[419175321,1775004645096,-397.0,0.00017544,2]
[419175322,1775004645105,-397.0,0.00017546,2]
[419175323,1775004645115,-397.0,0.00017553,2]
[419175324,1775004645124,-397.0,0.00017612,2]
[419175325,1775004645134,-298.27901699,0.000177,2]
[419175326,1775004645143,-397.0,0.00017757,2]
[419175327,1775004645154,-397.0,0.00017791,2]
[419175328,1775004645163,-397.0,0.00017801,2]
[419175329,1775004645173,-5534.0,0.000179,3]
[419175330,1775004645183,-160.0,0.000179,3]
[419175331,1775004645192,-397.0,0.00017931,2]
[419175332,1775004645201,-801.0,0.00017944,2]
[419175333,1775004645212,-397.0,0.00018018,2]
[419175334,1775004645220,-397.0,0.00018043,2]
[419175335,1775004645230,-189.39,0.00018078,2]
[419175336,1775004645239,-189.38,0.0001808,2]
[419175337,1775004645248,-397.0,0.00018084,2]
[419175338,1775004645257,-397.0,0.00018092,2]
[419175339,1775004645267,-397.0,0.00018189,2]
[419175340,1775004645276,-397.0,0.00018206,2]
[419175341,1775004645286,-30000.0,0.00018211,2]
[419175342,1775004645295,-5534.0,0.000183,5]
[419175343,1775004645304,-397.0,0.0001832,2]
[419175344,1775004645314,-502.0,0.00018357,6]
[419175345,1775004645322,-2934.93,0.00018499,2]
[419175346,1775004645331,-212.611365,0.00018499,7]
[419175347,1775004645340,-172.885316,0.00018499,7]
[419175348,1775004645349,-516.031249,0.00018499,7]
[419175349,1775004645358,-397.0,0.00018528,2]
[419175350,1775004645368,-24593.57451048,0.00018541,2]
[419175351,1775004645376,-397.0,0.00018603,2]
[419175352,1775004645386,-397.0,0.00018615,2]
[419175353,1775004645395,-397.0,0.00018634,2]
[419175354,1775004645404,-692.5167,0.000187,32]
[419175355,1775004645413,-189.38,0.00018753,2]
[419175356,1775004645422,-1699.0,0.00018771,2]
[419175357,1775004645431,-397.0,0.00018859,2]
[419175358,1775004645440,-2000.0,0.000189,2]
[419175359,1775004645449,-400.0,0.00019,2]
[419175360,1775004645458,-397.0,0.00019005,2]
[419175361,1775004645467,-397.0,0.00019089,2]
[419175362,1775004645476,-397.0,0.00019142,2]
[419175363,1775004645485,-3000.0,0.00019178,2]
[419175364,1775004645494,-151.0,0.00019178,2]
[419175365,1775004645503,-151.0,0.00019178,2]
[419175366,1775004645513,-801.0,0.0001945,2]
[419175367,1775004645522,-1064.96795078,0.00019502,2]
[419175368,1775004645531,-281.509281,0.00019516,7]
[419175369,1775004645540,-2000.0,0.00019601,2]
[419175370,1775004645549,-2000.0,0.00019601,2]
[419175371,1775004645558,-2000.0,0.00019601,2]
[419175372,1775004645567,-2000.0,0.00019601,2]
[419175373,1775004645576,-2000.0,0.00019601,2]
[419175374,1775004645585,-2000.0,0.00019601,2]
[419175375,1775004645594,-2000.0,0.00019601,2]
[419175376,1775004645604,-2000.0,0.00019601,2]
[419175377,1775004645614,-2000.0,0.00019601,2]
[419175378,1775004645624,-2000.0,0.00019601,2]
[419175379,1775004645634,-502.0,0.00019669,7]
[419175380,1775004645645,-1571.0,0.0001974,2]
[419175381,1775004645655,-150.0,0.0002,2]
[419175382,1775004645664,-150.0,0.0002,2]
[419175383,1775004645673,-200.0,0.0002,10]
[419175384,1775004645682,-1000.0,0.0002,7]
[419175385,1775004645692,-825.0,0.0002,30]
[419175386,1775004645703,-300.0,0.000201,10]
[419175387,1775004645714,-893.6211,0.000201,37]
[419175388,1775004645723,-24593.57451048,0.00020131,2]
[419175389,1775004645733,-1045.0,0.00020149,2]
[419175390,1775004645743,-621.0,0.00020149,2]
[419175391,1775004645754,-3519.0,0.00020149,2]
[419175392,1775004645766,-1262.0,0.00020149,2]
[419175393,1775004645778,-415.0,0.00020149,2]
[419175394,1775004645787,-150.0,0.00020149,2]
[419175395,1775004645798,-786.879,0.00020149,2]
[419175396,1775004645808,-6015.0,0.00020149,2]
[419175397,1775004645817,-189.99,0.00020252,2]
[419175398,1775004645827,-1330.0,0.00020564,10]
[419175399,1775004645836,-189.99,0.00020834,2]
[419175400,1775004645845,-9999.99,0.00020951,2]
[419175401,1775004645855,-3318.94,0.00020951,2]
[419175402,1775004645864,-14045.77,0.00020951,2]
[419175403,1775004645873,-801.0,0.00020955,2]
[419175404,1775004645883,-502.0,0.0002098,8]
[419175405,1775004645892,-450.0,0.00021,2]
[419175406,1775004645902,-156.69,0.00021233,2]
[419175407,1775004645911,-196.583332,0.00021345,7]
[419175408,1775004645920,-189.98990596,0.00021417,2]
[419175409,1775004645929,-1153.1256,0.000215,42]
[419175410,1775004645941,-1950.0,0.00021562,2]
[419175411,1775004645950,-1950.0,0.00021562,2]
[419175412,1775004645960,-1950.0,0.00021562,2]
[419175413,1775004645970,-1950.0,0.00021562,2]
[419175415,1775004645979,-1950.0,0.00021562,2]
[419175417,1775004645988,-1950.0,0.00021562,2]
[419175419,1775004645997,-1950.0,0.00021562,2]
[419175421,1775004646018,-1950.0,0.00021562,2]
[419175422,1775004646036,-1950.0,0.00021562,2]
[419175423,1775004646054,-1844.0,0.00021562,2]
[419175424,1775004646074,-414.89584708,0.00021621,2]
[419175425,1775004646092,-414.88,0.00021621,2]
[419175426,1775004646110,-24593.57451048,0.0002172,2]
[419175427,1775004646127,-8579.06167556,0.0002175,2]
[419175428,1775004646142,-180.0,0.00021933,2]
[419175429,1775004646161,-250.0,0.00022,3]
[419175430,1775004646179,-500.0,0.00022,2]
[419175432,1775004646197,-1132.0,0.00022,2]
[419175435,1775004646213,-1099.0,0.00022,2]
[419175437,1775004646228,-5323.0,0.00022,2]
[419175440,1775004646246,-1283.0,0.00022,2]
[419175443,1775004646264,-599.0,0.00022,2]
[419175445,1775004646277,-270.17,0.00022,30]
[419175448,1775004646291,-1064.96795078,0.00022181,2]
[419175450,1775004646307,-502.0,0.00022292,9]
[419175453,1775004646322,-825.0,0.00022433,30]
[419175455,1775004646337,-801.0,0.00022461,2]
[419175459,1775004646363,-2000.0,0.000226,2]
[419175461,1775004646378,-414.88,0.00022702,2]
[419175464,1775004646393,-2028.47,0.0002274,2]
[419175466,1775004646407,-1487.9892,0.000228,47]
[419175469,1775004646422,-500.0,0.00023,2]
[419175472,1775004646437,-1132.0,0.00023,2]
[419175474,1775004646451,-1099.0,0.00023,2]
[419175477,1775004646465,-5323.0,0.00023,2]
[419175479,1775004646480,-1283.0,0.00023,2]
[419175482,1775004646494,-599.0,0.00023,2]
[419175484,1775004646509,-500.0,0.00023,2]
[419175487,1775004646524,-1045.0,0.00023149,2]
[419175489,1775004646539,-621.0,0.00023149,2]
[419175492,1775004646554,-3519.0,0.00023149,2]
[419175495,1775004646569,-1262.0,0.00023149,2]
[419175497,1775004646584,-415.0,0.00023149,2]
[419175500,1775004646598,-24593.57451048,0.0002331,2]
[419175502,1775004646614,-882.7907463,0.00023593,2]
[419175505,1775004646629,-502.0,0.00023603,11]
[419175507,1775004646643,-2665.23016469,0.0002366,2]
[419175510,1775004646659,-490.63411781,0.0002366,2]
[419175513,1775004646674,-801.0,0.00023966,2]
[419175515,1775004646688,-500.0,0.00024,2]
[419175518,1775004646703,-1132.0,0.00024,2]
[419175520,1775004646718,-1099.0,0.00024,2]
[419175523,1775004646733,-5323.0,0.00024,2]
[419175525,1775004646747,-1283.0,0.00024,2]
[419175528,1775004646764,-599.0,0.00024,2]
[419175531,1775004646779,-1920.096,0.000242,52]
[419175533,1775004646794,-152.0,0.0002459,3]
[419175536,1775004646810,-5800.0,0.00024633,2]
[419175538,1775004646824,-5800.0,0.00024641,2]
[419175541,1775004646839,-151.0,0.00024641,2]
[419175544,1775004646855,-5800.0,0.0002465,2]
[419175546,1775004646870,-235.99,0.00024658,2]
[419175549,1775004646886,-1000.0,0.00024658,2]
[419175551,1775004646901,-150.0,0.00024658,2]
[419175554,1775004646916,-5800.0,0.00024658,2]
[419175557,1775004646932,-688.0,0.00024727,5]
[419175559,1775004646947,-298.27901699,0.000248,2]
[419175562,1775004646962,-370.0,0.00024807,3]
[419175565,1775004646977,-1064.96795078,0.00024861,2]
[419175567,1775004646992,-825.0,0.00024865,60]
[419175570,1775004647009,-150.0,0.00024899,2]
[419175572,1775004647024,-232.64044669,0.00024899,2]
[419175575,1775004647040,-151.0,0.000249,2]
[419175578,1775004647055,-274.996168,0.000249,2]
[419175580,1775004647070,-151.0,0.000249,2]
[419175583,1775004647085,-151.0,0.000249,2]
[419175585,1775004647100,-151.0,0.000249,2]
[419175588,1775004647115,-24593.57451048,0.000249,2]
[419175590,1775004647131,-157.728138,0.000249,2]
[419175593,1775004647147,-157.728138,0.000249,2]
[419175596,1775004647162,-157.728138,0.000249,2]
[419175598,1775004647177,-157.728138,0.000249,2]
[419175601,1775004647193,-152646.116877,0.000249,2]
[419175603,1775004647210,-502.0,0.00024915,12]
[419175606,1775004647225,-500.0,0.00025,2]
[419175609,1775004647240,-1132.0,0.00025,2]
[419175611,1775004647255,-1099.0,0.00025,2]
[419175614,1775004647270,-5323.0,0.00025,2]
[419175616,1775004647285,-1283.0,0.00025,2]
[419175619,1775004647301,-599.0,0.00025,2]
[419175622,1775004647317,-151.0,0.00025,2]
[419175624,1775004647332,-550.0,0.00025,2]
[419175627,1775004647347,-1000.0,0.00025086,2]
[419175630,1775004647363,-1000.0,0.00025086,2]
[419175632,1775004647378,-1000.0,0.00025086,2]
[419175635,1775004647393,-1000.0,0.00025086,2]
[419175637,1775004647408,-1000.0,0.00025086,2]
[419175640,1775004647423,-1000.0,0.00025086,2]
[419175642,1775004647437,-1000.0,0.00025086,2]
[419175645,1775004647453,-1000.0,0.00025086,2]
[419175648,1775004647468,-1000.0,0.00025086,2]
[419175650,1775004647482,-887.0,0.00025086,2]
[419175653,1775004647496,-159.1891824,0.00025102,2]
[419175655,1775004647511,-152.0,0.00025127,4]
[419175658,1775004647526,-801.0,0.00025472,2]
[419175660,1775004647541,-2477.6852,0.000256,57]
[419175663,1775004647556,-152.0,0.00025664,5]
[419175665,1775004647570,-150.0,0.0002589,2]
[419175668,1775004647584,-500.0,0.00026,2]
[419175671,1775004647600,-1132.0,0.00026,2]
[419175673,1775004647616,-1099.0,0.00026,2]
[419175676,1775004647631,-5323.0,0.00026,2]
[419175678,1775004647646,-1283.0,0.00026,2]
[419175680,1775004647661,-599.0,0.00026,2]
[419175681,1775004647676,-270.17,0.0002612,30]
[419175682,1775004647691,-1045.0,0.00026149,2]
[419175683,1775004647705,-621.0,0.00026149,2]
[419175684,1775004647721,-3519.0,0.00026149,2]
[419175685,1775004647736,-1262.0,0.00026149,2]
[419175686,1775004647750,-152.0,0.00026201,6]
[419175687,1775004647764,-502.0,0.00026226,13]
[419175688,1775004647779,-2000.0,0.000263,2]
[419175689,1775004647793,-825.0,0.00026461,5]
[419175690,1775004647809,-866.0,0.00026461,5]
[419175691,1775004647824,-500.0,0.00026633,120]
[419175692,1775004647839,-152.0,0.00026738,7]
[419175693,1775004647855,-187.77689859,0.00026809,2]
[419175694,1775004647870,-2808.0,0.00026893,3]
[419175695,1775004647885,-3197.1962,0.000269,62]
[419175696,1775004647901,-801.0,0.00026978,2]
[419175697,1775004647916,-800.0,0.00026986,120]
[419175698,1775004647931,-800.0,0.00026986,120]
[419175699,1775004647947,-510.0,0.00027,2]
[419175700,1775004647962,-1149.0,0.00027,2]
[419175701,1775004647977,-1110.0,0.00027,2]
[419175702,1775004647993,-5339.0,0.00027,2]
[419175703,1775004648008,-1283.70395089,0.00027,2]
[419175704,1775004648023,-151.0,0.00027,2]
[419175705,1775004648039,-609.0,0.00027,2]
[419175706,1775004648054,-150.0,0.00027185,2]
[419175707,1775004648070,-152.0,0.00027274,8]
[419175708,1775004648084,-825.0,0.00027298,60]
[419175709,1775004648100,-285.30989735,0.000273,30]
[419175710,1775004648114,-285.30989734,0.000273,30]
[419175711,1775004648128,-235.99,0.00027397,2]
[419175712,1775004648142,-300.0,0.00027397,2]
[419175713,1775004648156,-741.112806,0.00027397,2]
[419175714,1775004648169,-741.112806,0.00027397,2]
[419175715,1775004648183,-741.112806,0.00027397,2]
[419175716,1775004648197,-741.112806,0.00027397,2]
[419175717,1775004648211,-741.112806,0.00027397,2]
[419175718,1775004648226,-741.112806,0.00027397,2]
[419175719,1775004648241,-741.112806,0.00027397,2]
[419175720,1775004648256,-741.112806,0.00027397,2]
[419175721,1775004648270,-741.112806,0.00027397,2]
[419175722,1775004648284,-741.112806,0.00027397,2]
[419175723,1775004648297,-741.112806,0.00027397,2]
[419175724,1775004648311,-741.112806,0.00027397,2]
[419175725,1775004648325,-1000.0,0.00027397,20]
[419175726,1775004648339,-329.97301205,0.00027397,2]
[419175727,1775004648354,-11337.01,0.00027397,10]
[419175728,1775004648368,-9447.51,0.00027397,10]
[419175729,1775004648381,-1000.0,0.00027469,2]
[419175730,1775004648395,-502.0,0.00027538,14]
[419175731,1775004648409,-1064.96795078,0.00027541,2]
[419175732,1775004648424,-152.0,0.00027811,9]
[419175733,1775004648440,-1000.0,0.00027829,2]
[419175734,1775004648454,-151.0,0.00028183,7]
[419175735,1775004648467,-151.0,0.00028186,7]
[419175736,1775004648481,-4125.6508,0.000283,67]
[419175737,1775004648496,-152.0,0.00028348,10]
[419175738,1775004648510,-801.0,0.00028483,2]
[419175739,1775004648525,-1000.0,0.00028531,2]
[419175740,1775004648539,-150.0,0.00028544,2]
[419175741,1775004648553,-151.0,0.00028805,2]
[419175742,1775004648567,-194.63986655,0.00028805,2]
[419175743,1775004648581,-502.0,0.0002885,15]
[419175744,1775004648596,-152.0,0.00028885,11]
[419175745,1775004648612,-1444.0,0.00029041,120]
[419175746,1775004648626,-1045.0,0.00029149,2]
[419175747,1775004648641,-3519.0,0.00029149,2]
[419175748,1775004648655,-1262.0,0.00029149,2]
[419175749,1775004648669,-161.0,0.00029174,3]
[419175750,1775004648683,-1000.0,0.00029194,2]
[419175751,1775004648697,-1000.0,0.00029359,2]
[419175752,1775004648712,-1000.0,0.00029368,2]
[419175753,1775004648725,-1000.0,0.00029416,2]
[419175754,1775004648739,-152.0,0.00029422,12]
[419175755,1775004648752,-150.0,0.0002946,2]
[419175756,1775004648765,-1000.0,0.000295,120]
[419175757,1775004648779,-349.71264535,0.00029593,2]
[419175758,1775004648793,-1000.0,0.00029612,120]
[419175759,1775004648803,-1000.0,0.00029612,120]
[419175760,1775004648812,-5323.7253,0.000297,72]
[419175761,1775004648822,-288.62048721,0.00029726,3]
[419175762,1775004648831,-825.0,0.0002973,60]
[419175763,1775004648841,-1000.0,0.00029738,120]
[419175764,1775004648850,-500.4,0.00029769,2]
[419175765,1775004648860,-152.0,0.00029959,13]
[419175766,1775004648870,-150.0,0.00029971,2]
[419175767,1775004648880,-1000.0,0.00029989,120]
[419175768,1775004648889,-801.0,0.00029989,2]
[419175769,1775004649479,-160.0,0.0003,30]
[419175770,1775004649513,-200.0,0.0003,11]
[419175771,1775004649543,-215.38,0.0003,11]
[419175772,1775004649558,-2000.0,0.0003,2]
[419175773,1775004649568,-1027.37626981,0.0003,120]
[419175774,1775004649576,-1000.0,0.0003,120]
[419175775,1775004649587,-1012.82,0.0003,30]
[419175776,1775004649596,-160.0,0.0003,120]
[419175777,1775004649607,-160.0,0.0003,120]
[419175778,1775004649616,-1000.0,0.00030089,120]
[419175779,1775004649626,-1000.0,0.00030089,120]
[419175780,1775004649635,-161.0,0.00030102,3]
[419175781,1775004649644,-2808.0,0.00030113,3]
[419175782,1775004649653,-152.0554904,0.00030118,2]
[419175783,1775004649663,-1000.0,0.00030121,2]
[419175784,1775004649673,-152.0,0.00030137,2]
[419175785,1775004649683,-235.99,0.00030137,2]
[419175786,1775004649694,-228.235728,0.00030137,7]
[419175787,1775004649704,-228.235728,0.00030137,7]
[419175788,1775004649714,-228.235728,0.00030137,7]
[419175789,1775004649723,-228.235728,0.00030137,7]
[419175790,1775004649732,-228.235728,0.00030137,7]
[419175791,1775004649742,-228.235728,0.00030137,7]
[419175792,1775004649751,-228.235728,0.00030137,7]
[419175793,1775004649759,-228.235728,0.00030137,7]
[419175794,1775004649768,-228.235728,0.00030137,7]
[419175795,1775004649777,-228.235728,0.00030137,7]
[419175796,1775004649786,-228.235728,0.00030137,7]
[419175797,1775004649795,-228.235728,0.00030137,7]
[419175798,1775004649804,-164.40608598,0.00030137,7]
[419175799,1775004649813,-300.0,0.0003015,2]
[419175800,1775004649823,-300.0,0.0003015,2]
[419175801,1775004649832,-152.0,0.0003015,2]
[419175802,1775004649841,-502.0,0.00030161,16]
[419175803,1775004649851,-150.0,0.00030177,2]
[419175804,1775004649860,-150.0,0.00030213,2]
[419175805,1775004649869,-1064.96795078,0.0003022,2]
[419175806,1775004649879,-270.17,0.00030239,60]
[419175807,1775004649887,-150.0,0.0003026,2]
[419175808,1775004649897,-1000.0,0.00030262,2]
[419175809,1775004649906,-250.0,0.00030285,5]
[419175810,1775004649915,-200.0,0.00030287,5]
[419175811,1775004649924,-1191.11104075,0.00030287,5]
[419175812,1775004649933,-174.61919141,0.00030287,5]
[419175813,1775004649942,-500.0,0.00030287,5]
[419175814,1775004649951,-500.0,0.00030287,5]
[419175815,1775004649960,-7965.41053268,0.00030287,5]
[419175816,1775004649969,-578.20924308,0.00030287,5]
[419175817,1775004649978,-601.3376128,0.00030287,5]
[419175818,1775004649987,-200.0,0.00030287,5]
[419175819,1775004649996,-500.0,0.00030287,5]
[419175820,1775004650005,-1235.18214925,0.00030287,5]
[419175821,1775004650014,-181.08010149,0.00030287,5]
[419175822,1775004650024,-500.0,0.00030287,5]
[419175823,1775004650033,-8260.13072239,0.00030287,5]
[419175824,1775004650043,-625.00395117,0.00030287,5]
[419175825,1775004650052,-151.0,0.00030287,5]
[419175826,1775004650061,-1280.88388878,0.00030287,5]